[Event "FIJ Cannes 2024"]
[Site "Cannes"]
[Date "2024.02.20"]
[Round "3.1"]
[White "Puranik, Abhimanyu"]
[Black "Godena, Michele"]
[Result "1-0"]
[ECO "A21"]
[WhiteElo "2645"]
[BlackElo "2440"]
[Annotator "TA"]
[PlyCount "69"]
[EventDate "2024.02.20"]
[EventType "swiss"]
[EventCountry "FRA"]
[SourceTitle "playchess.com"]
[Source "ChessBase"]
[SourceQuality "1"]
[TimeControl "40/5400+30:1800+30"]

{[%evp 9,69,31,39,41,31,8,22,9,20,27,18,15,12,11,0,8,3,0,6,4,52,29,66,33,78,31,36,0,41,40,63,69,77,68,74,45,105,102,122,121,113,92,93,106,127,135,179,157,159,162,158,173,394,385,395,362,457,454,581,608,577,556]} 1. c4 {[%emt 1:31:00]} e5 {[%emt 1:31:00]} 2. Nc3 {[%emt 0:00:30]} Bb4 {[%emt 0:00:30]} 3. Nd5 {[%emt 0:00:30]} Be7 {[%emt 0:00:30]} 4. Nf3 {[%emt 0:00:30]} e4 {[%emt 0:00:30]} 5. Nd4 {[%emt 0:00:30]} c6 {[%emt 0:00:30]} 6. Nxe7 {[%emt 0:00:30]} Nxe7 {[%emt 0:00:30]} 7. e3 {[%emt 0:00:30]} d5 {[%emt 0:00:30]} 8. d3 {[%emt 0:00:30] The position is equal.} c5 {[%emt 0:00:30]} 9. Nb5 {[%emt 0:00:30] And now dxe4 would win.} exd3 {[%emt 0:00:30]} 10. Bxd3 {[%emt 0:00:30] next cxd5 is good for White.} a6 {[%emt 0:00:30]} 11. Nc3 {[%emt 0:00:30] [#] Hoping for cxd5.} dxc4 {[%emt 0:00:30]} 12. Bxc4 {[%emt 0:00:30]} Qxd1+ {[%emt 0:00:30]} 13. Nxd1 {[%emt 0:00:30]} b5 {[%emt 0:00:30]} 14. Be2 {[%emt 0:00:30]} Bb7 {[%emt 0:00:30]} (14... Nbc6 $11) 15. f3 {[%emt 0:00:30]} Nd7 {[%emt 0:00:30]} 16. Bd2 {[%emt 0:00:30]} O-O {[%emt 0:00:30]} 17. Nf2 {[%emt 0:00:30]} (17. b3 $16) 17... Rfe8 {[%emt 0:00:30]} 18. O-O-O {[%emt 0:00:30]} Nf5 {[%emt 0:00:30]} 19. Rhe1 {[%emt 0:00:30]} Ne5 {[%emt 0:00:30]} 20. Bf1 {[%emt 0:00:30]} Rad8 {[%emt 0:00:30][%cal Ob7f3]} 21. e4 {[%emt 0:00:30]} Nd4 {[%emt 0:00:30]} 22. Be3 {[%emt 0:00:30]} b4 {[%emt 0:00:30]} (22... Nc4 $14) 23. Kb1 {[%emt 0:00:30]} (23. b3 {is interesting.} a5 24. Kb2 Kf8 25. Rc1) 23... f6 {[%emt 0:00:30]} 24. Rd2 {[%emt 0:00:30]} Ne6 {[%emt 0:00:30]} 25. Red1 {[%emt 0:00:30][%cal Be1d1,Bd1d2,Bd2d6][%mdl 32]} Rxd2 {[%emt 0:00:30]} 26. Rxd2 a5 {[%emt 0:00:30]} 27. Rd6 {[%emt 0:01:00]} g5 {[%emt 0:00:30]} 28. b3 {[%emt 0:00:30]} Kf7 {[%emt 0:00:30]} 29. Nd3 {[%emt 0:00:30]} Nxd3 {[%emt 0:00:30]} 30. Bxd3 {[%emt 0:00:30] aiming for Bc4.} Re7 $2 {[%emt 0:00:30] [#]} (30... Ke7 {was worth a try.} 31. Rb6 Bc8) 31. Bc4 $18 {[%emt 0:00:30]} Bc8 {[%emt 0:00:30]} 32. Bxc5 {[%emt 0:00:30]} Kg6 {[%emt 0:00:30]} 33. Bb6 {[%emt 0:00:30] White is clearly winning.} f5 {[%emt 0:00:30]} 34. Bxa5 {[%emt 0:00:30] A strong pair of Bishops.} fxe4 {[%emt 0:00:30]} 35. fxe4 {[%emt 0:00:30] Weighted Error Value: White=0.11 (very precise) /Black=0.27 (precise) .  Mistake:       	White=1     	Black=3      Inaccurate:     	White=3     	Black=4      OK:         	White=8     	Black=8      Best:        	White=1     	Black=2} 1-0

[Event "FIJ Cannes 2024"]
[Site "Cannes"]
[Date "2024.02.20"]
[Round "3.2"]
[White "Garifullina, Leya"]
[Black "Zeng, Chongsheng"]
[Result "1-0"]
[ECO "B12"]
[WhiteElo "2422"]
[BlackElo "2597"]
[Annotator "RC"]
[PlyCount "81"]
[EventDate "2024.02.20"]
[EventType "swiss"]
[EventCountry "FRA"]
[SourceTitle "playchess.com"]
[Source "ChessBase"]
[SourceQuality "1"]
[TimeControl "40/5400+30:1800+30"]

1. e4 {[%emt 0:00:17]} c6 {[%emt 0:00:52]} 2. d4 {[%emt 0:00:10]} d5 {[%emt 0:00:05]} 3. e5 {[%emt 0:00:09]} Bf5 {[%emt 0:00:11]} 4. Nf3 {[%emt 0:00:13]} e6 {[%emt 0:00:10]} 5. Be2 {[%emt 0:00:04]} Nd7 {[%emt 0:00:53]} 6. O-O {[%emt 0:00:09]} h6 {[%emt 0:00:16]} 7. Nbd2 {[%emt 0:00:31]} Ne7 {[%emt 0:00:25]} 8. Nb3 {[%emt 0:00:15]} Qc7 {[%emt 0:01:32]} 9. a4 {[%emt 0:00:33]} g5 {[%emt 0:08:41]} 10. Bd2 {[%emt 0:01:34]} Nc8 {[%emt 0:15:38]} 11. Ne1 {[%emt 0:06:12]} Ncb6 {[%emt 0:01:07]} 12. Bd3 {[%emt 0:06:45]} Bxd3 {[%emt 0:11:02]} 13. Nxd3 {[%emt 0:11:00]} O-O-O {[%emt 0:04:01]} 14. Ba5 {[%emt 0:09:23]} Be7 {[%emt 0:12:10]} 15. Nbc5 {[%emt 0:02:56]} Rdf8 {[%emt 0:02:07]} 16. b4 {[%emt 0:13:41]} Qb8 {[%emt 0:00:46]} 17. Nxd7 {[%emt 0:02:06]} Kxd7 {[%emt 0:03:41]} 18. Bxb6 {[%emt 0:02:42]} axb6 {[%emt 0:00:01]} 19. a5 {[%emt 0:02:03]} bxa5 {[%emt 0:02:28]} 20. Rxa5 {[%emt 0:01:41]} b6 {[%emt 0:34:24]} 21. Ra2 {[%emt 0:02:55]} f5 {[%emt 0:00:00]} 22. exf6 {[%emt 0:01:14]} Bxf6 {[%emt 0:00:00]} 23. Qa1 {[%emt 0:02:11]} Rc8 {[%emt 0:00:00]} 24. f4 {[%emt 0:05:14]} Ke7 {[%emt 0:00:00]} 25. c3 {[%emt 0:00:51]} Rhf8 {[%emt 0:00:00]} 26. Raf2 {[%emt 0:03:21]} Qc7 {[%emt 0:00:00]} 27. Qb1 {[%emt 0:01:01]} g4 {[%emt 0:00:00]} 28. Ne5 {[%emt 0:00:26]} Rg8 {[%emt 0:00:00]} 29. f5 {[%emt 0:01:29]} g3 {[%emt 0:00:00]} 30. Re2 {[%emt 0:01:26]} gxh2+ {[%emt 0:00:00]} 31. Kh1 {[%emt 0:00:04]} Bxe5 {[%emt 0:02:12]} 32. Rxe5 {[%emt 0:00:27]} Rcf8 {[%emt 0:00:19]} 33. Rxe6+ {[%emt 0:03:52]} Kd7 {[%emt 0:00:49]} 34. Rfe1 {[%emt 0:01:47]} Rf7 {[%emt 0:03:07]} 35. f6 {[%emt 0:00:53]} Kd8 {[%emt 0:00:07]} 36. Qa2 {[%emt 0:02:21]} Qb7 {[%emt 0:00:53]} 37. Qa4 {[%emt 0:01:01]} Rc7 {[%emt 0:00:31]} 38. b5 {[%emt 0:01:43]} c5 {[%emt 0:00:00]} 39. dxc5 {[%emt 0:00:29]} bxc5 {[%emt 0:00:08]} 40. b6 {[%emt 0:00:13]} Rd7 {[%emt 0:00:37]} 41. f7 {[%emt 0:30:10]} 1-0

[Event "FIJ Cannes 2024"]
[Site "Cannes"]
[Date "2024.02.20"]
[Round "3.3"]
[White "Sasikiran, Krishnan"]
[Black "Gatineau, Yovann"]
[Result "1-0"]
[ECO "C11"]
[WhiteElo "2586"]
[BlackElo "2401"]
[Annotator "RC"]
[PlyCount "115"]
[EventDate "2024.02.20"]
[EventType "swiss"]
[EventCountry "FRA"]
[SourceTitle "playchess.com"]
[Source "ChessBase"]
[SourceQuality "1"]
[TimeControl "40/5400+30:1800+30"]

1. e4 {[%emt 0:09:19]} e6 {[%emt 0:00:38]} 2. d4 {[%emt 0:00:54]} d5 {[%emt 0:00:06]} 3. Nc3 {[%emt 0:00:18]} Nf6 {[%emt 0:00:07]} 4. e5 {[%emt 0:00:43]} Nfd7 {[%emt 0:00:08]} 5. f4 {[%emt 0:00:18]} c5 {[%emt 0:00:09]} 6. Nf3 {[%emt 0:00:10]} Nc6 {[%emt 0:00:07]} 7. Be3 {[%emt 0:00:09]} Be7 {[%emt 0:01:10]} 8. Qd2 {[%emt 0:01:46]} O-O {[%emt 0:00:46]} 9. dxc5 {[%emt 0:02:12]} Qa5 {[%emt 0:01:09]} 10. a3 {[%emt 0:06:39]} a6 {[%emt 0:00:42]} 11. Nd4 {[%emt 0:07:47]} Bxc5 {[%emt 0:06:20]} 12. Nb3 {[%emt 0:03:07]} Bxe3 {[%emt 0:00:27]} 13. Qxe3 {[%emt 0:00:10]} Qc7 {[%emt 0:01:17]} 14. Bd3 {[%emt 0:02:20]} Na5 {[%emt 0:10:38]} 15. Qh3 {[%emt 0:13:48]} f5 {[%emt 0:08:14]} 16. Nxa5 {[%emt 0:12:56]} Qxa5 {[%emt 0:00:09]} 17. Qe3 {[%emt 0:01:19]} Nc5 {[%emt 0:11:39]} 18. b4 {[%emt 0:04:32]} Nxd3+ {[%emt 0:00:14]} 19. cxd3 {[%emt 0:00:25]} d4 {[%emt 0:08:48]} 20. Qxd4 {[%emt 0:07:06]} Rd8 {[%emt 0:01:54]} 21. Qe3 {[%emt 0:03:21]} Qc7 {[%emt 0:01:07]} 22. Rc1 {[%emt 0:01:52]} Qd7 {[%emt 0:00:46]} 23. Qb6 {[%emt 0:06:24]} Qxd3 {[%emt 0:11:52]} 24. Kf2 {[%emt 0:04:48]} Bd7 {[%emt 0:13:21]} 25. Rhd1 {[%emt 0:02:06]} Qc4 {[%emt 0:00:07]} 26. Ne2 {[%emt 0:01:42]} Qb5 {[%emt 0:00:56]} 27. Qc7 {[%emt 0:01:11]} h6 {[%emt 0:11:34]} 28. Nd4 {[%emt 0:01:59]} Qd5 {[%emt 0:00:38]} 29. Nxf5 {[%emt 0:02:38]} Qa2+ {[%emt 0:02:29]} 30. Rc2 {[%emt 0:00:07]} Qb3 {[%emt 0:00:12]} 31. Ne3 {[%emt 0:02:29]} Rdc8 {[%emt 0:02:50]} 32. Qxd7 {[%emt 0:00:23]} Rxc2+ {[%emt 0:00:08]} 33. Nxc2 {[%emt 0:00:02]} Qxc2+ {[%emt 0:00:09]} 34. Rd2 {[%emt 0:00:17]} Qf5 {[%emt 0:01:09]} 35. g3 {[%emt 0:00:32]} Rf8 {[%emt 0:01:53]} 36. Qxb7 {[%emt 0:01:52]} g5 {[%emt 0:02:56]} 37. Qf3 {[%emt 0:00:31]} gxf4 {[%emt 0:01:22]} 38. gxf4 {[%emt 0:00:09]} Qxf4 {[%emt 0:00:31]} 39. Qxf4 {[%emt 0:00:49]} Rxf4+ {[%emt 0:00:04]} 40. Ke3 {[%emt 0:00:23]} Rh4 {[%emt 0:00:25]} 41. Rd6 {[%emt 0:30:27]} Rh3+ {[%emt 0:04:43]} 42. Kd4 {[%emt 0:00:00]} Rxa3 {[%emt 0:01:34]} 43. Rxe6 {[%emt 0:00:00]} Kg7 {[%emt 0:05:16]} 44. Rf6 {[%emt 0:00:00]} Ra2 {[%emt 0:09:05]} 45. h4 {[%emt 0:00:00]} a5 {[%emt 0:02:50]} 46. b5 {[%emt 0:00:00]} Ra4+ {[%emt 0:03:48]} 47. Kc5 {[%emt 0:00:00]} Re4 {[%emt 0:02:07]} 48. Ra6 {[%emt 0:00:00]} Rxe5+ {[%emt 0:00:32]} 49. Kc6 {[%emt 0:00:00]} Re4 {[%emt 0:05:04]} 50. b6 {[%emt 0:02:08]} Rc4+ {[%emt 0:00:29]} 51. Kd5 {[%emt 0:00:52]} Rxh4 {[%emt 0:00:47]} 52. b7 {[%emt 0:00:25]} Rb4 {[%emt 0:00:19]} 53. Kc6 {[%emt 0:00:05]} Rc4+ {[%emt 0:00:43]} 54. Kd7 {[%emt 0:00:38]} Rb4 {[%emt 0:00:27]} 55. Kc7 {[%emt 0:00:04]} h5 {[%emt 0:00:32]} 56. Rb6 {[%emt 0:00:29]} Rc4+ {[%emt 0:00:18]} 57. Kd6 {[%emt 0:00:25]} Rd4+ {[%emt 0:00:05]} 58. Ke5 {[%emt 0:00:10]} 1-0

[Event "FIJ Cannes 2024"]
[Site "Cannes"]
[Date "2024.02.20"]
[Round "3.4"]
[White "Xiang, Zeyu"]
[Black "Li, Di"]
[Result "1/2-1/2"]
[ECO "D38"]
[WhiteElo "2407"]
[BlackElo "2563"]
[Annotator "TA"]
[PlyCount "92"]
[EventDate "2024.02.20"]
[EventType "swiss"]
[EventCountry "FRA"]
[SourceTitle "playchess.com"]
[Source "ChessBase"]
[SourceQuality "1"]
[TimeControl "40/5400+30:1800+30"]

{[%evp 18,92,21,25,13,12,13,13,0,2,8,1,1,0,0,7,22,23,22,3,5,9,5,0,0,0,0,0,0,0,0,0,0,0,0,0,0,0,0,0,0,0,0,0,0,0,0,0,0,0,0,0,0,0,0,0,0,0,0,0,0,0,0,0,0,0,0,0,0,0,0,0,0,0,0,0,0]} 1. d4 {[%emt 0:00:50]} Nf6 {[%emt 0:00:14]} 2. c4 {[%emt 0:00:12]} e6 {[%emt 0:00:05]} 3. Nf3 {[%emt 0:00:04]} d5 {[%emt 0:00:15]} 4. Nc3 {[%emt 0:00:15]} Bb4 {[%emt 0:01:55]} 5. Bg5 {[%emt 0:01:25]} h6 {[%emt 0:01:26]} 6. Bxf6 {[%emt 0:00:12]} Qxf6 {[%emt 0:00:05]} 7. e3 {[%emt 0:00:11]} O-O {[%emt 0:00:49]} 8. Rc1 {[%emt 0:00:14]} dxc4 {[%emt 0:00:45]} 9. Bxc4 {[%emt 0:00:08]} c5 {[%emt 0:00:08]} 10. O-O {[%emt 0:00:17] Black must now prevent Ne4.} cxd4 {[%emt 0:01:20]} 11. Ne4 {[%emt 0:02:56]} Qe7 {[%emt 0:01:57]} 12. Nxd4 {[%emt 0:00:43]} Bd7 {[%emt 0:01:27]} 13. Be2 {[%emt 0:01:09]} Nc6 {[%emt 0:05:58]} 14. a3 {[%emt 0:03:21]} Nxd4 {[%emt 0:02:09]} 15. Qxd4 {[%emt 0:00:07]} Ba5 {[%emt 0:00:03][%cal Bb4a5,Ba5d8,Bd8e7][%mdl 32] Prevents Rc7} 16. Qc5 {[%emt 0:00:16]} Bd8 {[%emt 0:00:16]} 17. Qxe7 {[%emt 0:01:38]} Bxe7 {[%emt 0:02:01]} 18. Rc7 {[%emt 0:00:05][%csl LRb7,LRd7] The position is equal.} Rfd8 {[%emt 0:00:04]} 19. Rxb7 {[%emt 0:00:45]} Rab8 {[%emt 0:00:09]} 20. Rxa7 {[%emt 0:03:37] [#] Threatens to win with Rd1.} Rxb2 {[%emt 0:00:06]} 21. Bf3 {[%emt 0:00:12]} Kf8 {[%emt 0:06:06]} 22. Rd1 {[%emt 0:02:38]} Bc6 {[%emt 0:01:22] ...Rxd1+ would now be deadly.} 23. Rxd8+ {[%emt 0:01:03]} Bxd8 {[%emt 0:00:05] A strong pair of Bishops.} 24. g3 {[%emt 0:06:50][%cal Oe4d6]} Bb6 {[%emt 0:05:12]} 25. Ra6 {[%emt 0:00:28][%cal Oe4d2]} Bd5 {[%emt 0:00:25]} (25... Bb7 $5 26. Ra4 $8 Bc5 $11) 26. h4 {[%emt 0:03:40]} g6 {[%emt 0:01:24]} 27. Nd2 {[%emt 0:00:52]} Rxd2 {[%emt 0:00:42]} 28. Bxd5 {[%emt 0:00:06]} Bxe3 {[%emt 0:00:08]} 29. fxe3 {[%emt 0:00:09]} exd5 $11 {[%emt 0:00:15][%mdl 4096] Endgame. KR-KR} 30. Kf1 {[%emt 0:01:25]} d4 {[%emt 0:06:45]} 31. exd4 {[%emt 0:00:32]} Rxd4 {[%emt 0:00:05]} 32. Ke2 {[%emt 0:00:38]} Rg4 {[%emt 0:00:07]} 33. Kf3 {[%emt 0:00:12]} h5 {[%emt 0:00:03]} 34. Ra7 {[%emt 0:00:43]} Rc4 {[%emt 0:00:41]} 35. a4 {[%emt 0:00:25][%cal Ba3a4,Ba4a5,Ba5a6][%mdl 32]} Kg7 {[%emt 0:01:29]} 36. Ra6 {[%emt 0:02:18]} Rb4 {[%emt 0:00:12]} 37. a5 {[%emt 0:00:33]} Ra4 {[%emt 0:01:17]} 38. Ke3 {[%emt 0:00:00]} f6 {[%emt 0:01:14]} 39. Ra7+ {[%emt 0:01:16]} Kh6 {[%emt 0:00:11]} 40. a6 {[%emt 0:01:37]} g5 {[%emt 0:00:26]} 41. hxg5+ {[%emt 0:31:11]} fxg5 {[%emt 0:30:05]} 42. Ra8 {[%emt 0:00:07]} h4 {[%emt 0:00:26]} 43. gxh4 {[%emt 0:00:29]} gxh4 {[%emt 0:00:03]} 44. Kf3 {[%emt 0:00:06]} h3 {[%emt 0:00:19]} 45. Kg3 {[%emt 0:00:22]} Ra3+ {[%emt 0:00:04]} 46. Kh2 {[%emt 0:00:05]} Kg7 {[%emt 0:00:06] An even fight not without its subleties.   Weighted Error Value: White=0.00 (flawless) /Black=0.01 (flawless) .  OK:         	White=17    	Black=25     Best:        	---       	Black=3} 1/2-1/2

[Event "FIJ Cannes 2024"]
[Site "Cannes"]
[Date "2024.02.20"]
[Round "3.5"]
[White "Chapon, Jean-Alexis"]
[Black "Lalande, Jean-Louis"]
[Result "1-0"]
[ECO "D11"]
[WhiteElo "2039"]
[BlackElo "1923"]
[Annotator "NA RC"]
[PlyCount "57"]
[EventDate "2024.02.20"]
[EventType "swiss"]
[EventCountry "FRA"]
[SourceTitle "playchess.com"]
[Source "ChessBase"]
[SourceQuality "1"]
[TimeControl "40/5400+30:1800+30"]

1. d4 {[%emt 1:31:00]} d5 {[%emt 1:31:00]} 2. c4 {[%emt 0:00:30]} dxc4 {[%emt 0:00:30]} 3. Nf3 {[%emt 0:00:30]} Nf6 {[%emt 0:00:30]} 4. g3 {[%emt 0:00:30]} c6 {[%emt 0:00:30]} 5. Bg2 {[%emt 0:00:30]} g6 {[%emt 0:00:30]} 6. Ne5 {[%emt 0:00:30]} Be6 {[%emt 0:00:30]} 7. Na3 {[%emt 0:00:30]} Nbd7 {[%emt 0:00:30]} 8. Naxc4 {[%emt 0:00:30]} Nxe5 {[%emt 0:00:30]} 9. Nxe5 {[%emt 0:00:30]} Qb6 {[%emt 0:00:30]} 10. O-O {[%emt 0:00:30]} Rd8 {[%emt 0:00:30]} 11. e3 {[%emt 0:00:30]} Bg7 {[%emt 0:00:30]} 12. Qc2 {[%emt 0:00:30]} O-O {[%emt 0:00:30]} 13. b4 {[%emt 0:00:30]} a5 {[%emt 0:00:30]} 14. bxa5 {[%emt 0:00:30]} Qxa5 {[%emt 0:00:30]} 15. Bd2 {[%emt 0:00:30]} Qa6 {[%emt 0:00:30]} 16. Bb4 {[%emt 0:00:30]} Rfe8 {[%emt 0:00:30]} 17. Rfb1 {[%emt 0:00:30]} Bf5 {[%emt 0:00:30]} 18. e4 {[%emt 0:00:30]} Bc8 {[%emt 0:00:30]} 19. Bf1 {[%emt 0:00:30]} Qa8 {[%emt 0:00:30]} 20. Bc4 {[%emt 0:00:30]} e6 {[%emt 0:00:30]} 21. Bc5 {[%emt 0:00:30]} Nd7 {[%emt 0:00:30]} 22. Nxd7 {[%emt 0:00:30]} Rxd7 {[%emt 0:00:30]} 23. e5 {[%emt 0:00:30]} Bf8 {[%emt 0:00:30]} 24. Bb6 {[%emt 0:00:30]} Be7 {[%emt 0:00:30]} 25. Rb3 {[%emt 0:00:30]} Qa4 {[%emt 0:00:30]} 26. Qe2 {[%emt 0:00:30]} Bd8 {[%emt 0:00:30]} 27. Bc5 {[%emt 0:00:30]} b6 {[%emt 0:00:30]} 28. Ra3 {[%emt 0:00:30]} b5 {[%emt 0:00:30]} 29. Rb3 {[%emt 0:00:30]} 1-0

[Event "FIJ Cannes 2024"]
[Site "Cannes"]
[Date "2024.02.20"]
[Round "3.6"]
[White "Roberts, Tallulah"]
[Black "Bauzon, Romain"]
[Result "0-1"]
[ECO "B22"]
[WhiteElo "1488"]
[BlackElo "1290"]
[Annotator "NA RC"]
[PlyCount "66"]
[EventDate "2024.02.20"]
[EventType "swiss"]
[EventCountry "FRA"]
[SourceTitle "playchess.com"]
[Source "ChessBase"]
[SourceQuality "1"]
[TimeControl "40/5400+30:1800+30"]

1. e4 {[%emt 0:00:03]} c5 {[%emt 0:04:30]} 2. d4 {[%emt 0:00:14]} cxd4 {[%emt 0:00:07]} 3. c3 {[%emt 0:00:06]} e5 {[%emt 0:00:06]} 4. Nf3 {[%emt 0:05:00]} Nc6 {[%emt 0:00:33]} 5. cxd4 {[%emt 0:00:33]} exd4 {[%emt 0:00:06]} 6. Nxd4 {[%emt 0:01:56]} Bb4+ {[%emt 0:00:47]} 7. Nc3 {[%emt 0:07:08]} Qa5 {[%emt 0:00:09]} 8. Qd3 {[%emt 0:13:24]} Nf6 {[%emt 0:06:10]} 9. Be2 {[%emt 0:05:20]} Qe5 {[%emt 0:08:13]} 10. Nxc6 {[%emt 0:06:20]} dxc6 {[%emt 0:01:14]} 11. f3 {[%emt 0:06:43]} Be6 {[%emt 0:05:19]} 12. O-O {[%emt 0:07:37]} Rd8 {[%emt 0:05:36]} 13. Qc2 {[%emt 0:01:20]} O-O {[%emt 0:12:38]} 14. Be3 {[%emt 0:02:20]} Bc5 {[%emt 0:02:15]} 15. Bxc5 {[%emt 0:03:41]} Qxc5+ {[%emt 0:00:18]} 16. Kh1 {[%emt 0:00:26]} Rd7 {[%emt 0:06:32]} 17. Rad1 {[%emt 0:01:32]} Rfd8 {[%emt 0:01:33]} 18. Rxd7 {[%emt 0:04:11]} Rxd7 {[%emt 0:01:30]} 19. Bd3 {[%emt 0:02:50]} Qe3 {[%emt 0:02:47]} 20. Rd1 {[%emt 0:02:35]} Qg5 {[%emt 0:05:56]} 21. Ne2 {[%emt 0:02:04]} h5 {[%emt 0:02:12]} 22. Qd2 {[%emt 0:07:09]} Qxd2 {[%emt 0:00:16]} 23. Rxd2 {[%emt 0:00:10]} Bc4 {[%emt 0:00:19]} 24. Nc1 {[%emt 0:00:19]} Ne8 {[%emt 0:02:34]} 25. e5 {[%emt 0:01:31]} Kf8 {[%emt 0:02:58]} 26. Kg1 {[%emt 0:00:39]} Nc7 {[%emt 0:00:36]} 27. Kf2 {[%emt 0:00:20]} Ne6 {[%emt 0:00:23]} 28. Ke3 {[%emt 0:00:40]} Bxd3 {[%emt 0:03:01]} 29. Nxd3 {[%emt 0:02:00]} Ke7 {[%emt 0:00:34]} 30. h4 {[%emt 0:02:32]} g6 {[%emt 0:02:39]} 31. g4 {[%emt 0:02:08]} hxg4 {[%emt 0:02:34]} 32. fxg4 {[%emt 0:00:13]} Rd4 {[%emt 0:00:20]} 33. Rg2 {[%emt 0:01:14]} Rxd3+ {[%emt 0:00:08]} 0-1

[Event "FIJ Cannes 2024"]
[Site "Cannes"]
[Date "2024.02.21"]
[Round "4.1"]
[White "Nogerbek, Kazybek"]
[Black "Puranik, Abhimanyu"]
[Result "1/2-1/2"]
[ECO "D38"]
[WhiteElo "2463"]
[BlackElo "2645"]
[Annotator "TA"]
[PlyCount "63"]
[EventDate "2024.02.20"]
[EventType "swiss"]
[EventCountry "FRA"]
[SourceTitle "playchess.com"]
[Source "ChessBase"]
[SourceQuality "1"]
[TimeControl "40/5400+30:1800+30"]

{[%evp 13,63,19,25,23,7,14,5,8,17,0,0,-12,0,-3,16,14,73,-60,-18,-8,4,18,12,20,0,13,13,14,18,24,25,22,18,14,29,17,18,38,24,16,20,0,0,0,0,0,0,0,0,0,0,0]} 1. d4 {[%emt 1:31:00]} Nf6 {[%emt 1:31:00]} 2. c4 {[%emt 0:00:30]} e6 3. Nf3 {[%emt 0:00:30]} d5 4. Nc3 {[%emt 0:00:30]} Nbd7 {[%emt 0:01:30][%cal Bb8d7,Bd7f8,Bf8g6][%mdl 32]} 5. cxd5 {[%emt 0:00:30]} exd5 {[%emt 0:00:30]} 6. Bg5 {[%emt 0:00:30]} Bb4 {[%emt 0:00:30]} 7. Nd2 {[%emt 0:00:30]} c6 {[%emt 0:00:30]} 8. e3 {[%emt 0:00:30]} Nf8 {[%emt 0:00:30]} 9. Bd3 {[%emt 0:00:30]} Ng6 {[%emt 0:00:30]} 10. O-O $1 {[%emt 0:00:30]} O-O {[%emt 0:00:30]} 11. f4 {[%emt 0:00:30]} h6 {[%emt 0:00:30]} 12. Bxf6 {[%emt 0:00:30]} Qxf6 {[%emt 0:00:30]} 13. Qh5 {[%emt 0:00:30]} Ne7 {[%emt 0:00:30]} 14. f5 {[%emt 0:00:30][%cal Od2e4] [#] Black must now prevent Nde4!} c5 {[%emt 0:00:30]} (14... Qg5 $11 {remains equal.} 15. Qf3 Bd7) 15. Nf3 {[%emt 0:00:30] White is more active.} (15. Nde4 $16 dxe4 16. Nxe4) 15... Bxc3 {[%emt 0:00:30]} ({Much worse is} 15... Bxf5 16. Bxf5 Qxf5 17. Qxf5 Nxf5 18. Nxd5 $11) 16. bxc3 {[%emt 0:00:30]} Bxf5 {[%emt 0:00:30]} 17. Ne5 {[%emt 0:00:30]} Bg6 {[%emt 0:00:30]} 18. Nxg6 {[%emt 0:00:30]} fxg6 {[%emt 0:00:30]} 19. Rxf6 {[%emt 0:00:30]} gxh5 {[%emt 0:00:30]} 20. Re6 {[%emt 0:00:30]} Rae8 {[%emt 0:00:30]} 21. Rb1 {[%emt 0:00:30]} Nc6 {[%emt 0:00:30]} 22. Rxe8 {[%emt 0:00:30]} Rxe8 {[%emt 0:00:30]} 23. Rxb7 {[%emt 0:00:30] Threatens to win with Bb5.} cxd4 {[%emt 0:00:30]} 24. exd4 $11 {[%emt 0:00:30][%mdl 4096] Endgame. Bg6 would now be deadly. KRB-KRN} Re3 {[%emt 0:00:30]} 25. Bg6 {[%emt 0:00:30] Strongly threatening Rc7.} Rxc3 {[%emt 0:00:30]} 26. Kf2 {[%emt 0:00:30]} h4 {[%emt 0:00:30] The position is equal.} 27. Rc7 {[%emt 0:00:30][%mdl 1024] White has compensation.} Kf8 {[%emt 0:00:30]} 28. Rf7+ {[%emt 0:00:30]} Kg8 {[%emt 0:00:30]} 29. Rd7 {[%emt 0:00:30] [#] aiming for Rc7.} (29. Rc7 $5 Kf8 $8 30. Rf7+ Kg8 31. Rc7 $11) 29... Kf8 $1 {[%emt 0:00:30]} 30. Rf7+ {[%emt 0:00:30]} Kg8 {[%emt 0:00:30]} 31. Rc7 {[%emt 0:00:30] White wants to mate with Rc8+.} Kf8 {[%emt 0:00:30]} 32. Rf7+ {[%emt 0:00:30] Weighted Error Value: White=0.10 (very precise) /Black=0.10 (very precise) .  Mistake:       	White=1     	Black=1      Inaccurate:     	White=1     	Black=1      OK:         	White=12    	Black=5      Best:        	White=1     	Black=7      Strong:       	White=1     	Black=1} 1/2-1/2